bitfinex/quotes_ETHUSD_20230830
["timestamp","ask_amount","ask_price","bid_price","bid_amount"]
[1693421747464,9.4641,1705.0,1704.9,28.32810446]
[1693421747666,9.4641,1705.0,1704.9,25.35564069]
[1693421747900,10.15561676,1705.0,1704.9,24.33615356]
[1693421748080,10.15561676,1705.0,1704.9,25.35565985]
[1693421748487,10.15561676,1705.0,1704.9,25.3556706]
[1693421748674,10.15561676,1705.0,1704.9,24.33615356]
[1693421748882,10.16031016,1705.0,1704.9,25.35566919]
[1693421749833,10.16031016,1705.0,1704.9,26.79866919]
[1693421750335,10.16031016,1705.0,1704.9,29.67214984]
[1693421750488,10.16031016,1705.0,1704.9,30.27979169]
[1693421750833,10.16031016,1705.0,1704.9,24.76786919]
[1693421751196,10.16031016,1705.0,1704.9,9.88495563]
[1693421751398,10.16031016,1705.0,1704.9,15.75039563]
[1693421751724,10.16031016,1705.0,1704.9,14.73088]
[1693421751938,10.16031016,1705.0,1704.8,5.86562]
[1693421752232,10.16031016,1705.0,1704.8,5.86569]
[1693421752383,10.16031016,1705.0,1704.8,11.73148]
[1693421752783,10.16031016,1705.0,1704.8,12.31928]
[1693421758609,12.36016246,1705.0,1704.8,12.31928]
[1693421758903,10.16031016,1705.0,1704.9,1.0196289]
[1693421759619,10.16031016,1705.0,1704.9,6.8850689]
[1693421761596,21.89051016,1705.0,1704.9,1.0196289]
[1693421761797,21.89051016,1705.0,1704.8,1.62727075]
[1693421762005,8.05449102,1704.9,1704.8,1.62727075]
[1693421762608,8.75026933,1704.9,1704.8,1.62727075]
[1693421762806,8.75496247,1704.9,1704.8,1.62727075]
[1693421763424,8.75496247,1704.9,1704.8,1.93109168]
[1693421764399,8.75496247,1704.9,1704.8,2.2349126]
[1693421765150,7.6673252,1704.9,1704.8,2.2349126]
[1693421769547,7.6673252,1704.9,1704.8,1.93698753]
[1693421771118,13.5327652,1704.9,1704.8,1.63122694]
[1693421771432,13.5327652,1704.9,1704.8,1.0196289]
[1693421771833,13.5327652,1704.9,1704.7,2.54858557]
[1693421772040,13.5327652,1704.9,1704.8,1.0196289]
[1693421772237,13.5327652,1704.9,1704.7,2.54858557]
[1693421772481,13.5327652,1704.9,1704.8,1.0196289]
[1693421772642,13.5327652,1704.9,1704.7,1.63122694]
[1693421772846,13.5327652,1704.9,1704.8,1.0196289]
[1693421773049,13.5327652,1704.9,1704.7,1.63122694]
[1693421773287,6.56591145,1704.9,1704.7,7.49733694]
[1693421773487,0.70047145,1704.9,1704.8,1.0196289]
[1693421774158,6.56591145,1704.9,1704.8,1.0196289]
[1693421774352,6.56591145,1704.9,1704.8,1.01966758]
[1693421774553,6.56591145,1704.9,1704.7,11.73224]
[1693421774771,6.56591145,1704.9,1704.7,5.86611]
[1693421775292,6.56591145,1704.9,1704.8,1.01966478]
[1693421775494,6.56591145,1704.9,1704.7,5.86611]
[1693421780387,8.7554226,1704.9,1704.7,5.86611]
[1693421783936,8.7554226,1704.9,1704.6,5.86628]
[1693421784233,8.7554226,1704.9,1704.6,11.73261]
[1693421791014,0.70047145,1704.9,1704.6,17.59908]
[1693421791834,0.70047145,1704.9,1704.6,19.04208]
[1693421793160,0.70047145,1704.9,1704.6,19.62988]
[1693421796095,0.70047145,1704.9,1704.6,18.18688]
[1693421797187,6.56592145,1704.9,1704.6,18.18688]
[1693421798964,17.65481925,1704.9,1704.6,6.45408]
[1693421799191,17.65481925,1704.9,1704.6,0.5878]
[1693421799392,11.78936925,1704.9,1704.6,15.32072]
[1693421800293,6.56592145,1704.9,1704.6,15.32072]
[1693421800593,9.4393921,1704.9,1704.6,9.45425]
[1693421800764,15.3048321,1704.9,1704.6,9.45425]
[1693421801298,9.4393921,1704.9,1704.6,9.45425]
[1693421802203,15.3048321,1704.9,1704.6,8.86645]
[1693421802425,1.53048321,1704.8,1704.6,8.86645]
[1693421802831,0.00468258,1704.7,1704.6,14.73292]
[1693421802999,0.00468258,1704.7,1704.6,20.59939]
[1693421803800,0.49731667,1704.9,1704.6,20.59939]
[1693421804026,6.36278667,1704.9,1704.6,20.59939]
[1693421804900,0.00467843,1704.8,1704.6,20.59939]
[1693421805229,0.00467843,1704.8,1704.6,23.245992]
[1693421805835,6.36278667,1704.9,1704.6,23.245992]
[1693421806798,0.00467717,1704.8,1704.6,23.245992]
[1693421807841,6.36278667,1704.9,1704.6,23.245992]
[1693421808803,0.00467717,1704.8,1704.6,23.245992]
[1693421809129,0.00467717,1704.8,1704.7,14.0568592]
[1693421809991,6.36278667,1704.9,1704.7,14.0568592]
[1693421810268,6.36278667,1704.9,1704.7,11.73226]
[1693421810830,0.00467717,1704.8,1704.7,11.73226]
[1693421811775,6.36278667,1704.9,1704.7,11.73226]
[1693421812780,0.00467717,1704.8,1704.7,11.73226]
[1693421813790,6.36278667,1704.9,1704.7,11.73226]
[1693421814883,0.00467717,1704.8,1704.7,11.73226]
[1693421815082,0.00467717,1704.8,1704.7,13.949491]
[1693421815880,0.49731667,1704.9,1704.7,13.949491]
[1693421816077,0.49731667,1704.9,1704.7,11.73226]
[1693421817081,0.00467843,1704.8,1704.7,11.73226]
[1693421817502,0.50258875,1704.8,1704.7,11.73226]
[1693421824573,0.50258875,1704.8,1704.7,20.59839]
[1693421824768,0.50258875,1704.8,1704.7,21.61801611]
[1693421825071,0.50258875,1704.8,1704.7,24.66812148]
[1693421825270,0.50258875,1704.8,1704.7,23.64849661]
[1693421825471,0.50258875,1704.8,1704.7,24.66811626]
[1693421825667,0.50258875,1704.8,1704.7,26.11111626]
[1693421826105,0.50258875,1704.8,1704.7,39.38189663]
[1693421826404,0.50258875,1704.8,1704.7,40.88669332]
[1693421826603,0.00467843,1704.8,1704.7,40.88669332]
[1693421826761,9.4641,1705.0,1704.7,40.88669332]
[1693421826967,9.4641,1705.0,1704.8,9.55128898]
[1693421827168,9.4641,1705.0,1704.9,17.59632]
[1693421827401,9.4641,1705.0,1704.9,20.59632]
[1693421827906,9.4684026,1705.0,1704.9,20.59632]
[1693421831869,10.07349647,1705.0,1704.9,20.59632]
[1693421832069,10.07349647,1705.0,1704.9,23.79567793]
[1693421837934,8.81430941,1705.0,1704.9,31.11215858]
[1693421838072,0.1085228,1705.1,1704.9,38.58483045]
[1693421838277,0.1085228,1705.1,1705.0,25.07601252]
[1693421838531,0.1085228,1705.1,1705.0,32.03176181]
[1693421838878,0.1085228,1705.1,1705.0,31.41993104]
[1693421839779,0.1085228,1705.1,1705.0,34.30593104]
[1693421840376,0.1085228,1705.1,1705.0,34.91776181]
[1693421840616,0.1085228,1705.1,1705.0,32.86293104]
[1693421841197,0.1085228,1705.1,1705.0,34.91776181]
[1693421841843,0.101,1705.2,1705.1,3.0]
[1693421842014,0.101,1705.2,1705.1,30.43625805]
[1693421845833,0.101,1705.2,1705.1,31.96524233]
[1693421846149,0.101,1705.2,1705.1,30.43625805]
[1693421846327,0.101,1705.2,1705.1,31.96524169]
[1693421848135,0.101,1705.5,1705.1,35.7564685]
[1693421848316,0.101,1705.5,1705.4,1.443]
[1693421848513,0.101,1705.5,1705.4,27.89788]
[1693421849821,0.58485446,1705.5,1705.4,29.527663]
[1693421850119,0.10503435,1705.5,1705.4,29.527663]
[1693421850909,0.10503435,1705.5,1705.4,30.54684644]
[1693421851110,0.10503435,1705.5,1705.4,34.05442945]
[1693421852044,0.101,1705.5,1705.4,34.05442945]
[1693421856851,0.101,1705.5,1705.4,34.66433559]
[1693421861069,0.101,1705.5,1705.4,35.14388017]
[1693421864342,0.101,1705.5,1705.4,36.06162633]
[1693421864757,0.101,1705.5,1705.4,35.14388017]
[1693421865050,0.101,1705.5,1705.4,35.45172019]
[1693421865381,0.101,1705.5,1705.4,36.98070383]
[1693421865900,0.101,1705.5,1705.4,38.63111623]
[1693421866034,0.101,1705.7,1705.6,0.5878]
[1693421866241,0.101,1705.7,1705.6,31.52800167]
[1693421866865,0.101,1705.7,1705.6,30.91887438]
[1693421867302,0.101,1705.7,1705.6,31.5279597]
[1693421867804,0.101,1705.7,1705.6,30.61426876]
[1693421868102,0.05599029,1705.8,1705.6,30.61426876]
[1693421868303,0.05599029,1705.8,1705.7,4.66841032]
[1693421868501,0.05599029,1705.8,1705.7,25.25648032]
[1693421868703,0.522442,1705.8,1705.7,25.25648032]
[1693421868872,0.52649845,1705.8,1705.7,25.25648032]
[1693421870902,0.52649845,1705.8,1705.7,25.86556564]
[1693421871394,0.52649845,1705.8,1705.7,25.25648032]
[1693421871789,0.05599029,1705.8,1705.7,25.86556564]
[1693421871995,0.05599029,1705.8,1705.7,38.45693629]
[1693421872169,0.05599029,1705.8,1705.7,39.34934191]
[1693421872372,0.05599029,1705.8,1705.7,40.87832555]
[1693421872709,0.05599029,1705.8,1705.7,40.29052555]
[1693421872881,0.05599029,1705.8,1705.7,41.50878014]
[1693421873203,0.05599029,1705.8,1705.7,42.09653062]
[1693421873396,0.101,1706.3,1705.7,41.9887087]
[1693421873709,0.101,1706.3,1706.1,1.443]
[1693421873910,0.101,1706.3,1706.2,5.86097]
[1693421874288,0.101,1706.3,1706.2,26.65376585]
[1693421874616,0.051,1706.3,1706.2,27.54610131]
[1693421874909,0.051,1706.3,1706.2,28.5947579]
[1693421875114,0.051,1706.3,1706.2,31.8293349]
[1693421875688,0.4875459,1706.3,1706.2,29.43763744]
[1693421875887,0.49160738,1706.3,1706.2,28.8293349]
[1693421876101,0.49160738,1706.3,1706.2,23.35799728]
[1693421876300,0.49160738,1706.3,1706.2,22.44439092]
[1693421877088,0.49160738,1706.3,1706.2,16.93664392]
[1693421877411,0.49160738,1706.3,1706.2,22.18949495]
[1693421878006,0.49160738,1706.3,1706.2,22.79761392]
[1693421879194,0.49160738,1706.3,1706.2,24.24061392]
[1693421881650,0.49160738,1706.3,1706.2,22.79761392]
[1693421881942,0.4365459,1706.3,1706.2,22.79761392]
[1693421882308,0.08234465,1706.5,1706.2,22.79761392]
[1693421882505,7.31271612,1706.5,1706.3,1.01878495]
[1693421882820,0.00391263,1706.4,1706.3,5.86059]
[1693421883019,0.00391263,1706.4,1706.3,12.74003301]
[1693421883950,0.00391263,1706.4,1706.3,12.74001479]
[1693421885175,0.00391263,1706.4,1706.3,11.72122]
[1693421885452,0.00391263,1706.4,1706.2,8.86066]
[1693421885611,1.3216105,1706.4,1706.3,5.86063]
[1693421886956,0.00391263,1706.4,1706.3,5.86063]
[1693421889755,0.40553583,1706.4,1706.3,5.86063]
[1693421890661,6.26582583,1706.4,1706.1,7.05719897]
[1693421890831,4.31648065,1706.3,1705.9,1.52172533]
[1693421891034,16.03806065,1706.3,1705.9,1.62704058]
[1693421891229,1.60380607,1706.2,1705.9,1.62704058]
[1693421891445,1.60380607,1706.2,1705.9,13.35055058]
[1693421891653,1.60380607,1706.2,1706.0,1.01892161]
[1693421891848,0.00389306,1706.1,1706.0,6.88045161]
[1693421892050,0.00389306,1706.1,1706.0,1.01892161]
[1693421892361,0.75077897,1706.1,1706.0,1.01892161]
[1693421892562,18.33473897,1706.1,1706.0,1.01892161]
[1693421893140,12.47341897,1706.1,1706.0,1.01892161]
[1693421893550,12.47341897,1706.1,1705.9,0.60811897]
[1693421893551,12.47341897,1706.1,1705.8,6.47037897]
[1693421893774,12.47341897,1706.1,1705.9,1.01902568]
[1693421893975,1.2473419,1706.0,1705.9,1.01902568]
[1693421894479,7.1090019,1706.0,1705.7,13.24674533]
[1693421894679,7.1090019,1706.0,1705.8,1.01902887]
[1693421894876,0.00387707,1705.9,1705.8,1.01902887]
[1693421895082,1e-08,1705.9,1705.8,1.01902887]
[1693421895842,0.64502674,1705.9,1705.8,1.01902887]
[1693421896043,18.23102674,1705.9,1705.6,0.60811897]
[1693421896342,18.23102674,1705.9,1705.6,1.62718604]
[1693421896549,18.23102674,1705.9,1705.7,1.01906707]
[1693421896751,18.23102674,1705.9,1705.6,0.60811897]
[1693421896951,1.60380607,1705.8,1705.6,0.60811897]
[1693421897269,13.32879607,1705.8,1705.6,0.60811897]
[1693421897475,13.32879607,1705.8,1705.6,1.62719011]
[1693421897686,7.46615607,1705.8,1705.6,1.62719011]
[1693421897983,0.00371573,1705.7,1705.5,7.38509533]
[1693421898286,0.00371573,1705.7,1705.6,1.01908449]
[1693421905104,5.86640573,1705.7,1705.6,1.01908449]
[1693421905793,5.86640573,1705.7,1705.5,5.86322]
[1693421906774,0.38365561,1705.6,1705.5,5.86322]
[1693421906974,0.38365561,1705.6,1705.5,6.88234374]
[1693421907189,5.86640573,1705.7,1705.5,6.88234374]
[1693421907376,5.86640573,1705.7,1705.5,5.86322]
[1693421908608,5.86640573,1705.7,1705.4,12.33515897]
[1693421908798,5.86640573,1705.7,1705.5,1.01912508]
[1693421909111,21.63814195,1705.7,1705.3,1.19591897]
[1693421909406,21.63814195,1705.7,1705.3,0.5878]
[1693421912100,21.63814195,1705.7,1705.3,6.4518]
[1693421912315,15.77545195,1705.7,1705.3,12.31587]
[1693421912516,14.60257638,1705.7,1705.4,1.01920589]
[1693421913403,14.60257638,1705.7,1705.4,6.88289589]
[1693421913590,5.86640573,1705.7,1705.4,5.86369]
[1693421914495,11.72909573,1705.7,1705.4,5.86369]
[1693421917640,2.87348065,1705.6,1705.4,5.86369]
[1693421917963,14.59993065,1705.6,1705.3,7.46136]
[1693421918549,5.86308,1705.6,1705.3,13.32543]
[1693421918911,0.0037261,1705.5,1705.3,13.32543]
[1693421921940,0.38180721,1705.4,1705.3,13.32543]
[1693421922160,0.0037261,1705.5,1705.3,14.3446381]
[1693421922314,0.38180721,1705.4,1705.3,13.32543]
[1693421922513,0.38180721,1705.4,1705.3,14.34463539]
[1693421922945,0.38552468,1705.4,1705.3,12.74713539]
[1693421923660,0.38552468,1705.4,1705.3,6.88306539]
[1693421923953,0.38552468,1705.4,1705.3,6.8830654]
[1693421924957,0.38552468,1705.4,1705.3,7.49247002]
[1693421925612,13.69792,1705.6,1705.3,7.49247002]
[1693421925808,0.3581538,1705.4,1705.3,6.47326462]
[1693421926038,0.00357449,1705.4,1705.3,7.49246743]
[1693421926844,16.57140065,1705.6,1705.3,7.49246743]
[1693421927043,16.57140065,1705.6,1705.4,1.01920281]
[1693421927584,14.59980065,1705.6,1705.4,1.01920281]
[1693421927943,0.00358186,1705.5,1705.4,1.01920281]
[1693421929983,0.33114746,1705.5,1705.4,1.01920281]
[1693421931393,0.33114746,1705.5,1705.4,1.62860743]
[1693421934484,0.33114746,1705.5,1705.4,2.54271436]
[1693421934862,0.33114746,1705.5,1705.4,1.62860743]
[1693421935460,7.68762227,1705.5,1705.4,2.54271436]
[1693421935659,13.55100227,1705.5,1705.4,1.52351155]
[1693421935883,7.68762227,1705.5,1705.4,0.60940462]
[1693421936508,7.68762227,1705.5,1705.4,1.52351155]
[1693421937511,7.68762227,1705.5,1705.4,1.93330974]
[1693421937679,7.68762227,1705.5,1705.4,0.91410693]
[1693421937902,7.68762227,1705.5,1705.4,1.52541244]
[1693421939022,7.68762227,1705.5,1705.4,1.63050832]
[1693421939334,6.19452746,1705.5,1705.4,1.63050832]
[1693421939534,0.33114746,1705.5,1705.4,1.63050832]
[1693421939679,0.33114746,1705.5,1705.4,8.40833525]
[1693421939872,0.33114746,1705.5,1705.4,14.27209029]
[1693421940109,0.33114746,1705.5,1705.4,13.66074974]
[1693421940290,0.33114746,1705.5,1705.4,15.73509164]
[1693421944616,0.33114746,1705.5,1705.4,16.34663952]
[1693421944918,0.33114746,1705.5,1705.4,7.49447069]
[1693421946438,0.33114746,1705.5,1705.4,6.88292281]
[1693421950646,0.33114746,1705.5,1705.4,12.74664281]
[1693421952345,0.33114746,1705.5,1705.4,12.74660549]
[1693421953544,0.33114746,1705.5,1705.4,6.88288549]
[1693421954367,0.33114746,1705.5,1705.4,6.88294681]
[1693421961164,0.33114746,1705.5,1705.4,12.74666681]
[1693421967889,0.33114746,1705.5,1705.4,12.7466879]
[1693421968088,0.33114746,1705.5,1705.4,12.74668875]
[1693421977300,0.33114746,1705.5,1705.4,14.72769207]
[1693421980998,0.33114746,1705.5,1705.4,22.64609655]
[1693421981199,0.33114746,1705.5,1705.4,25.64609655]
[1693421983213,0.33114746,1705.5,1705.4,24.20309655]
[1693421983786,0.33114746,1705.5,1705.4,25.64609655]
[1693421989441,0.33114746,1705.5,1705.4,25.64631139]
[1693421990889,0.33114746,1705.5,1705.4,24.20331139]
[1693421992500,0.33114746,1705.5,1705.4,22.22230807]
[1693421997727,0.33114746,1705.5,1705.4,21.6103053]
[1693422001447,0.33114746,1705.5,1705.4,23.0533053]
[1693422002489,0.33114746,1705.5,1705.4,23.66530807]
[1693422003074,0.33114746,1705.5,1705.4,23.0533053]
[1693422003274,0.33114746,1705.5,1705.4,26.15680952]
[1693422003638,0.33114746,1705.5,1705.4,21.6103053]
[1693422003838,0.33114746,1705.5,1705.4,15.7465853]
[1693422004154,0.33114746,1705.5,1705.4,6.8828653]
[1693422004350,9.06800811,1705.5,1705.1,6.93837878]
[1693422004674,9.06800811,1705.5,1705.0,8.00690971]
[1693422004675,5.86407,1705.3,1705.0,12.34194277]
[1693422004980,0.33114746,1705.5,1705.2,0.61200277]
[1693422005178,0.33114746,1705.5,1705.3,17.59221]
[1693422005502,0.33114746,1705.5,1705.4,1.0191839]
[1693422005791,0.33114746,1705.5,1705.4,18.6103439]
[1693422005950,0.33114746,1705.5,1705.4,23.67687857]
[1693422007381,0.33114746,1705.5,1705.4,26.31968134]
[1693422008381,0.33114746,1705.5,1705.4,27.2376855]
[1693422008749,0.33114746,1705.5,1705.4,30.11116615]
[1693422008975,0.33114746,1705.5,1705.4,29.49916338]
[1693422009993,0.33114746,1705.5,1705.4,30.11083661]
[1693422010165,0.33114746,1705.5,1705.4,24.8763518]
[1693422011686,0.33114746,1705.5,1705.4,24.2885518]
[1693422012386,0.33114746,1705.5,1705.4,7.49457713]
[1693422012559,0.33114746,1705.5,1705.4,6.8829039]
[1693422013151,0.33114746,1705.5,1705.4,12.7466239]
[1693422013459,0.33114746,1705.5,1705.4,18.6103439]
[1693422013789,0.33114746,1705.5,1705.4,12.7466239]
[1693422019477,0.33114746,1705.5,1705.4,6.8829039]
[1693422019680,0.33114746,1705.5,1705.4,1.0191839]
[1693422021110,0.33114746,1705.5,1705.4,6.8829039]
[1693422023717,0.3275656,1705.5,1705.4,6.8829039]
[1693422024815,0.94663616,1705.5,1705.4,6.8829039]
[1693422026293,0.94663616,1705.5,1705.4,5.86372]
[1693422026990,0.94663616,1705.5,1705.2,7.39407739]
[1693422027193,6.81001616,1705.5,1705.3,1.01923828]
[1693422027387,0.94663616,1705.5,1705.3,6.88325828]
[1693422027613,0.00310452,1705.4,1705.3,5.86402]
[1693422027828,0.00310452,1705.4,1705.3,6.88325892]
[1693422028619,0.00310452,1705.4,1705.3,1.01923892]
[1693422030527,22.59206024,1705.4,1704.9,0.61167323]
[1693422030729,2.87348065,1705.3,1704.9,1.01944434]
[1693422031029,11.72896,1705.2,1704.9,1.01944434]
[1693422031232,14.60244065,1705.2,1704.9,1.01944434]
[1693422031393,1.46024407,1705.1,1704.9,1.01944434]
[1693422031729,16.06651905,1705.1,1704.9,1.01944434]
[1693422031951,16.06651905,1705.1,1704.8,0.61167323]
[1693422032257,16.06651905,1705.1,1704.8,1.63116141]
[1693422032438,16.06651905,1705.1,1704.7,12.34360323]
[1693422032749,8.74127498,1705.1,1704.8,13.36250941]
[1693422033049,8.74127498,1705.1,1704.9,1.01948618]
[1693422033349,8.74127498,1705.1,1704.8,11.73135]
[1693422040336,8.74127498,1705.1,1704.9,1.01948364]
[1693422040550,0.8741275,1705.0,1704.9,1.01948364]
[1693422041237,8.74127498,1705.1,1704.9,1.01948364]
[1693422041665,8.74127498,1705.1,1704.8,11.73135]
[1693422042045,8.74127498,1705.1,1704.9,1.01949414]
[1693422042247,8.74127498,1705.1,1704.8,11.73135]
[1693422042459,8.74127498,1705.1,1704.9,1.01950783]
[1693422042637,10.98480948,1705.1,1704.9,1.01950783]
[1693422044986,10.98480948,1705.1,1704.7,0.61167323]
[1693422044987,1.443,1705.0,1704.7,0.61167323]
[1693422045130,1.443,1705.0,1704.7,5.86607]
[1693422045131,8.73874065,1705.0,1704.7,5.86607]
[1693422045339,3.56889193,1705.0,1704.8,1.01956632]
[1693422045569,0.00305006,1704.9,1704.8,6.88509632]
[1693422047356,1e-08,1704.9,1704.8,6.88509632]
[1693422047557,0.00317714,1704.9,1704.8,6.88509632]
[1693422049085,5.86861714,1704.9,1704.8,1.01956632]
[1693422049266,5.86861714,1704.9,1704.7,0.61167323]
[1693422049267,6.4876877,1704.9,1704.7,1.63123955]
[1693422049469,6.4876877,1704.9,1704.6,8.33354416]
[1693422049470,12.3531277,1704.9,1704.6,8.02721323]
[1693422049669,6.4876877,1704.9,1704.7,1.01961168]
[1693422049880,6.4876877,1704.9,1704.7,6.88572168]
[1693422050080,6.4876877,1704.9,1704.7,5.86611]
[1693422052061,6.4876877,1704.9,1704.6,8.02721323]
[1693422052261,6.4876877,1704.9,1704.7,1.01961832]
[1693422053291,3.52224942,1704.8,1704.7,1.01961832]
[1693422053496,9.39118678,1704.8,1704.7,1.01961832]
[1693422054602,0.00314736,1704.8,1704.7,1.01961832]
[1693422054966,0.00314736,1704.8,1704.7,6.88574832]
[1693422055694,5.86544,1704.9,1704.7,6.88574832]
[1693422055904,8.73892065,1704.9,1704.7,5.86613]
[1693422056078,11.04400484,1704.9,1704.7,5.86613]
[1693422056469,0.00314736,1704.8,1704.7,5.86613]
[1693422056672,0.00314736,1704.8,1704.7,6.88577168]
[1693422057193,0.00314736,1704.8,1704.7,7.49744491]
[1693422057591,11.73052,1705.0,1704.7,7.49744491]
[1693422057902,11.73052,1705.0,1704.8,1.01964168]
[1693422058702,0.00315535,1704.9,1704.8,1.01964168]
[1693422060524,0.00315535,1704.9,1704.8,22.1691224]
[1693422060671,0.00315535,1704.9,1704.8,26.0633569]
[1693422060876,0.00315535,1704.9,1704.8,26.36935829]
[1693422061199,0.00315535,1704.9,1704.8,26.67535968]
[1693422061569,5.86381,1705.4,1704.8,26.67535968]
[1693422061789,5.86381,1705.4,1705.1,0.60995588]
[1693422062002,6.1909756,1705.5,1705.2,5.86441]
[1693422062732,0.00319217,1705.4,1705.2,5.86441]
[1693422065896,5.86695217,1705.4,1705.2,5.86441]
[1693422069831,0.23542154,1705.3,1705.2,5.86441]
[1693422070035,0.23542154,1705.3,1705.2,6.88381883]
[1693422070414,11.73084217,1705.4,1705.2,6.88381883]
[1693422070607,11.73084217,1705.4,1705.2,5.86441]
[1693422070608,0.00318505,1705.3,1705.2,5.86441]
[1693422071533,11.72765,1705.4,1705.2,5.86441]
[1693422071698,5.86376,1705.4,1705.2,5.86441]
[1693422072624,0.0031905,1705.3,1705.1,7.51792]
[1693422073509,11.72765,1705.4,1705.1,7.51792]
[1693422073716,13.486756,1705.4,1705.1,7.51792]
[1693422074513,0.0031905,1705.3,1705.1,7.51792]
[1693422074708,5.8672905,1705.3,1705.1,7.51792]
[1693422075837,5.8672905,1705.3,1705.1,5.86442]
[1693422077751,5.8672905,1705.3,1705.2,1.01937911]
[1693422078053,0.0031905,1705.3,1705.2,6.88378911]
[1693422078423,0.0031905,1705.3,1705.2,5.86441]
[1693422078666,5.86376,1705.4,1705.2,6.88378804]
[1693422078833,5.86376,1705.4,1705.2,5.86441]
[1693422079757,0.00318914,1705.3,1705.2,5.86441]
[1693422080698,5.86376,1705.4,1705.2,5.86441]
[1693422081758,0.0031905,1705.3,1705.2,5.86441]
[1693422082662,5.86376,1705.4,1705.2,5.86441]
[1693422083562,0.0031905,1705.3,1705.2,5.86441]
[1693422084157,0.20589035,1705.3,1705.2,5.86441]
[1693422084362,0.0031905,1705.3,1705.2,5.86441]
[1693422085529,5.86376,1705.4,1705.2,5.86441]
[1693422086533,0.00318914,1705.3,1705.2,5.86441]
[1693422087626,11.72769,1705.4,1705.2,5.86441]
[1693422087830,13.4868,1705.4,1705.2,5.86441]
[1693422088586,0.00318914,1705.3,1705.2,5.86441]
[1693422089492,0.00318914,1705.3,1705.1,7.49662]
[1693422089646,14.60162065,1705.3,1704.8,6.93860699]
[1693422089849,1.46016207,1705.2,1704.9,1.01942955]
[1693422090156,1.46016207,1705.2,1704.8,7.82928]
[1693422090157,14.60298065,1705.1,1704.8,1.9637]
[1693422090344,14.60298065,1705.1,1704.7,11.73192]
[1693422090549,0.00316517,1705.0,1704.7,11.73192]
[1693422090749,5.86831517,1705.0,1704.7,11.73192]
[1693422092484,0.00316517,1705.0,1704.7,11.73192]
[1693422093588,5.86829517,1705.0,1704.7,5.86594]
[1693422095658,0.00316517,1705.0,1704.7,11.73207]
[1693422095860,0.00316517,1705.0,1704.9,5.86544]
[1693422100556,0.00316517,1705.0,1704.8,5.86554]
[1693422100756,5.86827517,1705.0,1704.7,12.34277627]
[1693422100959,5.86827517,1705.0,1704.7,11.73212]
[1693422103802,8.74175582,1705.0,1704.7,11.73212]
[1693422103974,2.87664582,1705.0,1704.8,1.01954166]
[1693422104168,2.87664582,1705.0,1704.8,6.88508166]
[1693422104369,2.87664582,1705.0,1704.8,5.86554]
[1693422104975,2.87664582,1705.0,1704.8,11.73133]
[1693422108372,2.87664582,1705.0,1704.7,2.5824007]
[1693422108577,2.87664582,1705.0,1704.8,11.73133]
[1693422117210,2.87664582,1705.0,1704.8,5.86554]
[1693422118123,8.74181582,1705.0,1704.7,5.86583]
[1693422118339,8.74181582,1705.0,1704.8,5.8656]
[1693422118515,2.87664582,1705.0,1704.8,5.8656]
[1693422120287,8.74176582,1705.0,1704.8,5.8656]
[1693422123622,8.73860065,1705.0,1704.8,5.8656]
[1693422124756,8.73860065,1705.0,1704.7,11.73177]
[1693422125754,8.73860065,1705.0,1704.7,5.86583]
[1693422125975,10.97428172,1705.0,1704.7,5.86583]
[1693422128158,10.97428172,1705.0,1704.8,1.01955738]
[1693422135054,2.87348065,1704.9,1704.7,5.86583]
[1693422135271,8.73904065,1704.9,1704.7,5.86583]
[1693422135478,8.73904065,1704.9,1704.8,1.0196145]
[1693422135641,10.42302482,1704.9,1704.8,1.0196145]
[1693422136254,8.73904065,1704.9,1704.8,1.0196145]
[1693422139159,8.73904065,1704.9,1704.7,11.73179]
[1693422139369,8.73904065,1704.9,1704.7,5.86583]
[1693422147193,14.60460065,1704.9,1704.6,2.80415627]
[1693422147395,14.60460065,1704.9,1704.6,0.5878]
[1693422147396,20.47016065,1704.9,1704.6,0.5878]
[1693422147601,2.04701607,1704.8,1704.6,0.5878]
[1693422147782,5.86613,1704.7,1704.6,0.5878]
[1693422148092,5.86613,1704.7,1704.6,1.01971997]
[1693422149606,5.86613,1704.7,1704.6,1.01970062]
[1693422150101,5.86613,1704.7,1704.6,1.01970115]
[1693422150270,7.53138867,1704.7,1704.5,6.45448]
[1693422150999,1.66525867,1704.7,1704.5,6.45448]
[1693422151500,16.20984065,1704.8,1704.5,6.45448]
[1693422153890,14.60544065,1704.8,1704.6,1.01967228]
[1693422154096,14.60544065,1704.8,1704.5,12.32116]
[1693422154419,14.60544065,1704.8,1704.6,1.01967441]
[1693422154914,14.60544065,1704.8,1704.5,12.32116]
[1693422156518,14.60544065,1704.8,1704.5,0.5878]
[1693422156706,4.33402472,1704.7,1704.5,0.5878]
[1693422157015,10.20039472,1704.7,1704.5,0.5878]
[1693422158525,16.06676472,1704.7,1704.5,0.5878]
[1693422158887,16.06676472,1704.7,1704.4,15.83834668]
[1693422159220,16.06676472,1704.7,1704.4,15.37194]
[1693422160229,16.06676472,1704.7,1704.4,9.50495]
[1693422164099,1.60667647,1704.6,1704.4,9.50495]
[1693422164300,16.06676472,1704.7,1704.4,7.97205]
[1693422166330,10.20039472,1704.7,1704.4,7.97205]
[1693422166495,10.20039472,1704.7,1704.4,13.83921]
[1693422169451,8.73985065,1704.7,1704.4,13.83921]
[1693422169630,8.73985065,1704.7,1704.5,1.01971751]
[1693422169835,8.73985065,1704.7,1704.5,6.88650751]
[1693422170157,8.73985065,1704.7,1704.5,5.86679]
[1693422174677,2.87348065,1704.7,1704.5,11.73361]
[1693422176076,4.33402472,1704.7,1704.5,11.73361]
[1693422176280,10.20016472,1704.7,1704.5,5.86679]
[1693422180677,4.33402472,1704.7,1704.5,5.86679]
[1693422189382,4.33402472,1704.7,1704.6,1.01971725]
[1693422190368,2.87348065,1704.7,1704.6,6.88618725]
[1693422212547,35.67462,1705.2,1704.6,12.75265725]
[1693422212751,29.81,1705.2,1704.7,2.46271725]
[1693422212925,5.86414,1705.3,1704.8,20.05954725]
[1693422213120,12.6964067,1705.5,1704.9,4.46867198]
[1693422213121,11.72706,1705.5,1704.9,4.46867198]
[1693422213318,2.87348065,1705.4,1705.0,18.61420725]
[1693422213516,8.73720065,1705.4,1705.0,17.59449]
[1693422215338,2.87348065,1705.4,1705.0,17.59449]
[1693422218457,11.72709,1705.5,1705.0,19.03749]
[1693422218617,14.60057065,1705.5,1705.0,21.31127447]
[1693422218817,14.60057065,1705.5,1705.0,23.15847447]
[1693422219666,14.60057065,1705.5,1705.0,21.71547447]
[1693422221557,8.73686065,1705.5,1705.0,23.15847447]
[1693422221725,8.73686065,1705.5,1705.1,1.443]
[1693422222028,8.73686065,1705.5,1705.2,11.72871]
[1693422222229,8.73686065,1705.5,1705.2,13.632355]